Cogmind - Beta 13 @@@ ROGUE MODE // 2024.05.21 @ 10:45:10 Player: Erik The Viking Result: Destroyed by Y-45 Defender with Heavy Assault Rifle Performance ------------- Evolutions (2) 1000 Regions Visited (3) 600 Robots Destroyed (41) 205 Value Destroyed (823) 823 Prototype IDs (10) 200 Alien Tech Used (0) 0 Bonus (-36) -36 TOTAL SCORE: 2792 Bonus ------- Friendly Fire -36 Cogmind --------- Core Integrity 0/550 Matter 122/300 Energy 99/100 System Corruption 3% Temperature Cool (9) Movement Core (50) Location -8/Materials Parts ------- > --- POWER (1) -------- (None) > --- PROPULSION (3) --- (None) > --- UTILITY (4) ------ (None) > --- WEAPON (3) ------- (None) > --- INVENTORY (5) ---- Small Matter Pod (0) Peak State ------------ > --- POWER ------------ Light Ion Engine > --- PROPULSION ------- Aluminum Leg Arachnoskeleton > --- UTILITY ---------- Scrap Shield > --- WEAPON ----------- Grenade Launcher Grenade Launcher > --- INVENTORY -------- Grenade Launcher Grenade Launcher [Rating: 29] Favorites ----------- Power Light Ion Engine Engine Light Ion Engine Power Core Light Nuclear Core Propulsion Aluminum Leg Leg Aluminum Leg Utility Improved Terrain Scanner Device Improved Terrain Scanner Processor Terrain Scan Processor Protection Scrap Shield Weapon Grenade Launcher Energy Gun EM Pulse Gun Ballistic Gun Assault Rifle Launcher Grenade Launcher Special Weapon Mining Laser Build | -11 -10 -10 -8 ------- Run | Yrd Mat Sub Mat Slots Evolved 4 | . . . 4 Power . | . . . . Propulsion 1 | . . . 1 Utility 2 | . . . 2 Weapon 1 | . . . 1 Parts Attached 24 | 5 8 4 7 Power 3 | 1 . . 2 Engine 2 | 1 . . 1 Core 1 | . . . 1 Reactor . | . . . . Propulsion 4 | 2 . . 2 Treads . | . . . . Leg 4 | 2 . . 2 Wheel . | . . . . Hover . | . . . . Flight . | . . . . Utility 4 | . 2 1 1 Device 2 | . 1 . 1 Storage . | . . . . Processor 1 | . 1 . . Hackware . | . . . . Protection 1 | . . 1 . Artifact . | . . . . Weapon 13 | 2 6 3 2 Energy Gun 1 | 1 . . . Energy Cannon . | . . . . Ballistic Gun 4 | 1 3 . . Ballistic Cannon . | . . . . Launcher 7 | . 2 3 2 Special Weapon 1 | . 1 . . Impact Weapon . | . . . . Slashing Weapon . | . . . . Piercing Weapon . | . . . . Special Melee Weapon . | . . . . Unidentified Prototypes . | . . . . Parts Lost 12 | . . 2 10 Power 3 | . . 1 2 Propulsion 3 | . . 1 2 Utility 2 | . . . 2 Weapon 4 | . . . 4 Highest Loss Streak 9 | . . 2 9 To Critical Strikes . | . . . . Average Slot Usage (%) 68 | . 93 66 27 Engine 5 | . 14 1 2 Leg 18 | . 28 15 7 Device 7 | . 13 5 1 Processor 5 | . 8 5 . Protection 5 | . . 8 5 Energy Gun 1 | . 6 . . Ballistic Gun 3 | . 10 . . Launcher 20 | . 7 27 10 Naked Turns 21 | . . . 21 Heaviest Build 27 | 7 10 24 27 Greatest Support 60 | 20 20 20 60 Greatest Overweight (x) 7 | . . 2 7 Average Overweight (x) . | . . . . Largest Inventory Capacity 5 | 5 5 5 5 Average Capacity 5 | 5 5 5 5 Most Carried 5 | 5 5 5 5 Average Carried 4 | 1 4 4 2 Final Capacity 5 | 5 5 5 5 Final Carried 5 | 4 5 5 1 Class Distribution -------------------- 100% | Mutant Dominant Class ---------------- Mutant | -10/Materials Mutant | -10/Subcaves Mutant | -8/Materials Resources | -11 -10 -10 -8 ----------- Run | Yrd Mat Sub Mat Matter Collected 650 | 250 132 158 110 Remotely . | . . . . Salvage Created 1161 | 259 361 401 140 Parts 87 | 20 30 24 13 Haulers Intercepted . | . . . . Recyclers Shooed 3 | 1 1 . 1 Parts Field Recycled . | . . . . Retrieved Matter . | . . . . Parts Self-Destructed 13 | . . 13 . Prevented . | . . . . Kills | -11 -10 -10 -8 ------- Run | Yrd Mat Sub Mat Combat Hostiles Destroyed 19 | . 5 13 1 Guns 5 | . 5 . . AOE 14 | . . 13 1 Classes Destroyed 9 | 3 5 1 . Worker 5 | 2 1 . 2 Builder 5 | . 4 . 1 Tunneler 6 | 5 1 . . Recycler 3 | 1 1 . 1 Operator 1 | . 1 . . Watcher 2 | . 2 . . Swarmer 3 | . 3 . . Grunt 3 | . 2 . 1 Subdweller 13 | . . 13 . Best Kill Streak 11 | 4 11 11 3 Combat Bots Only 11 | . 3 11 1 Max Kills in Single Turn 6 | 1 2 6 1 Gunslinging 1 | . 1 . . Exploded 6 | . . 6 1 Melee . | . . . . Uniques/NPCs Destroyed . | . . . . Combat | -11 -10 -10 -8 -------- Run | Yrd Mat Sub Mat Hostile Shots Fired 194 | . 26 9 159 Missed 56 | . 5 5 46 Damage Taken 2157 | 26 205 242 1684 Core 640 | . 22 65 553 Absorbed by Shields . | . . . . Core Remaining (%) 82 | 100 . 65 . Volleys Fired 109 | 32 51 18 8 Largest 2 | 1 2 2 2 Hottest 100 | 40 100 60 60 Shots Fired 150 | 32 77 32 9 Gun 86 | 32 54 . . Cannon . | . . . . Launcher 41 | . . 32 9 Special 23 | . 23 . . Kinetic 28 | . 28 . . Thermal 23 | . 23 . . Explosive 41 | . . 32 9 Electromagnetic 58 | 32 26 . . Robot Hit Streak 9 | 6 8 8 9 Robot Miss Streak 3 | 2 3 1 1 Penetration Max . | . . . . Secondary Targets 2 | . 2 . . Max Gunslinging Chain 1 | . 1 . . Shots Hit Robots 71 | 21 36 10 4 Core Hits 72 | 8 19 24 21 Critical Kills . | . . . . Critical Parts Destroyed . | . . . . Critical Strikes 1 | . 1 . . Corrupt 1 | . 1 . . Melee Attacks . | . . . . Impact . | . . . . Slashing . | . . . . Piercing . | . . . . Sneak Attacks . | . . . . Combat Hostiles . | . . . . Follow-up Attacks . | . . . . Damage Inflicted 2574 | 327 518 1112 617 Guns 745 | 275 470 . . Cannons . | . . . . Explosions 1751 | 52 . 1112 587 Melee . | . . . . Ramming 30 | . . . 30 Kinetic 260 | . 260 . . Thermal 100 | 52 48 . . Explosive 1699 | . . 1112 587 Electromagnetic 485 | 275 210 . . Impact . | . . . . Slashing . | . . . . Piercing . | . . . . Highest Corruption 3 | . 2 2 3 Average Corruption 2 | . 2 2 2 Corruption Purged . | . . . . Corruption Blocked . | . . . . Effects 12 | . 2 10 . Message Errors 6 | . . 6 . Matter Fused 3 | . 1 2 . Heat Flow Errors 2 | . . 2 . Energy Discharges 1 | . 1 . . Overload Shots . | . . . . Overflow Damage 2 | . . 2 . Projectiles . | . . . . Explosions 2 | . . 2 . Melee . | . . . . Knockbacks . | . . . . Impact . | . . . . Kinetic . | . . . . Secondary . | . . . . Self-Inflicted Damage 209 | 26 . 166 17 Shots 13 | 1 . 11 1 Rammed 13 | . . . 13 Targets Rammed 17 | . . . 17 Kicked 4 | . . . 4 Crushed . | . . . . Highest Temperature 220 | 12 220 79 54 Average Temperature 83 | 12 93 48 20 Received Heat Transfer 786 | . 66 18 702 Siege Activations . | . . . . Robots Corrupted . | . . . . Combat Hostiles . | . . . . Parts Fried 5 | 4 1 . . Impact Corruptions . | . . . . Robots Melted . | . . . . Combat Hostiles . | . . . . Parts Melted . | . . . . Heat Transferred 150 | 50 100 . . Parts Sabotaged . | . . . . Parts Stolen . | . . . . Parts Stripped . | . . . . Power Chain Reactions 2 | 2 . . . Alert | -11 -10 -10 -8 ------- Run | Yrd Mat Sub Mat Peak Influence 240 | 40 240 . 61 Initial 26 | . 26 . . Average 91 | 18 151 . 20 Maximum Alert Level 1 | . 1 . . Low Security (%) 71 | 100 47 . 100 Level 1 28 | . 52 . . Level 2 . | . . . . Level 3 . | . . . . Level 4 . | . . . . Level 5 . | . . . . High Security . | . . . . Max Security . | . . . . Squads Dispatched 4 | . 2 . 2 Investigation . | . . . . Extermination . | . . . . Reinforcement 3 | . 2 . 1 Assault . | . . . . Garrison 1 | . . . 1 Intercept . | . . . . Searches Triggered . | . . . . Construction Impeded 1 | . . . 1 Haulers Reinforced . | . . . . Active Scanning Responses . | . . . . Cargo Convoy Interrupts . | . . . . Stealth | -11 -10 -10 -8 --------- Run | Yrd Mat Sub Mat Distress Signals 4 | . 1 . 3 Communications Jammed . | . . . . Distress Signals . | . . . . Times Spotted 30 | . 7 9 14 Peak Tracking Total 11 | . 5 4 11 Tactical Retreats 2 | . . . 2 Traps | -11 -10 -10 -8 ------- Run | Yrd Mat Sub Mat Traps Triggered 1 | . 1 . . Indirectly . | . . . . Trap Hack Attempts . | . . . . Triggered . | . . . . Disarmed . | . . . . Reprogrammed . | . . . . Reused . | . . . . Traps Extracted . | . . . . Installed . | . . . . Triggered 2 | . . 2 . Machines | -11 -10 -10 -8 ---------- Run | Yrd Mat Sub Mat Machines Disabled 5 | . 1 3 1 Max in Single Turn 3 | . 1 3 1 Machines Repaired . | . . . . Machines Dismantled . | . . . . Machines Sabotaged . | . . . . Overloaded Fab Kills . | . . . . Hacking | -11 -10 -10 -8 --------- Run | Yrd Mat Sub Mat Machines Accessed 3 | . 1 1 1 Terminals . | . . . . Fabricators . | . . . . Repair Stations . | . . . . Recycling Units 2 | . 1 . 1 Scanalyzers . | . . . . Garrison Access . | . . . . Total Hacks 11 | . 1 9 1 Successful 11 | . 1 9 1 Failed . | . . . . Catastrophic . | . . . . Database Lockouts . | . . . . Manual . | . . . . Terminals . | . . . . Fabricators . | . . . . Repair Stations . | . . . . Recycling Units 2 | . 1 . 1 Scanalyzers . | . . . . Garrison Access . | . . . . Terminal Hacks 9 | . . 9 . Record 8 | . . 8 . Derelict Proto ID Bank 1 | . . 1 . Fabricator Hacks . | . . . . Repair Station Hacks . | . . . . Recycling Unit Hacks 2 | . 1 . 1 Retrieve Matter 1 | . . . 1 Retrieve Components 1 | . 1 . . Scanalyzer . | . . . . Garrison Access Hacks . | . . . . Unauthorized Hacks . | . . . . Terminals . | . . . . Fabricators . | . . . . Repair Stations . | . . . . Recycling Units . | . . . . Scanalyzers . | . . . . Garrison Access . | . . . . Data Cores Recovered . | . . . . Used . | . . . . Hacking Detections 1 | . . . 1 Full Trace Events . | . . . . Feedback Events . | . . . . Feedback Blocked . | . . . . Robot Schematics Acquired . | . . . . Robots Built . | . . . . Authchips . | . . . . Time . | . . . . Total Robot Build Rating . | . . . . Part Schematics Acquired . | . . . . Parts Built . | . . . . Authchips . | . . . . Time . | . . . . Total Part Build Rating . | . . . . Parts Repaired . | . . . . Time . | . . . . Parts Recycled . | . . . . Recycled Matter . | . . . . Retrieved Matter . | . . . . Retrieved Components 9 | . 9 . . Parts Scanalyzed . | . . . . Part Schematics Acquired . | . . . . Parts Damaged . | . . . . Bothacking | -11 -10 -10 -8 ------------ Run | Yrd Mat Sub Mat Used RIF Installer . | . . . . Robots Hacked . | . . . . Non-combat . | . . . . Combat . | . . . . Robot Hacks Applied . | . . . . Relay Couplers Released . | . . . . Fabnet Peak Effective % . | . . . . Robots Rewired . | . . . . Allies Hacked . | . . . . Hacks Repelled . | . . . . Allies | -11 -10 -10 -8 -------- Run | Yrd Mat Sub Mat Total Allies . | . . . . Largest Group . | . . . . Highest-Rated Group . | . . . . Highest-Rated Ally . | . . . . Total Orders . | . . . . Ally Attacks . | . . . . Total Damage . | . . . . Kills . | . . . . Allies Corrupted . | . . . . Allies Melted . | . . . . Intel | -11 -10 -10 -8 ------- Run | Yrd Mat Sub Mat Robot Analysis Total . | . . . . Derelict Logs Recovered 1 | . . 1 . Drone Launches . | . . . . Drone Recoveries . | . . . . Exploration | -11 -10 -10 -8 ------------- Run | Yrd Mat Sub Mat Turns Passed 2198 | 192 545 1206 255 Spaces Moved 1127 | 102 229 631 165 Core 75 | 13 . . 62 Treads . | . . . . Legs 1052 | 89 229 631 103 Wheels . | . . . . Hover . | . . . . Flight . | . . . . Fastest Speed 50 | 50 120 120 50 Average Speed 153 | 111 120 181 122 Slowest Speed 400 | 120 120 260 400 Overloaded Moves . | . . . . Propulsion Burnouts . | . . . . Robots Hopped . | . . . . Cave-ins Triggered . | . . . . Exploration Rate (%) 17 | 4 28 17 19 Regions Visited 3 Branch Regions 1 Pre-discovered Areas . | . . . . Known Exits Taken 1 | . . 1 . Unknown Exits Taken 2 | 1 1 . . Scrap Searched . | . . . . Spaces Dug 30 | . . 26 4 Terrain Destroyed 181 | 7 . 136 38 Melee . | . . . . Projectile . | . . . . AOE 181 | 7 . 136 38 Terrain Rammed . | . . . . Walls Destroyed . | . . . . Machines Disabled . | . . . . Actions | -11 -10 -10 -8 --------- Run | Yrd Mat Sub Mat Total 1392 | 149 375 665 203 Wait 77 | . 77 . . Move 1124 | 101 228 630 165 Hop . | . . . . Pick Up 27 | 10 7 5 5 Fast Attach . | . . . . Attach 19 | 5 3 4 7 Detach . | . . . . Swap 5 | . 5 . . Drop 14 | 1 4 8 1 Fire 109 | 32 51 18 8 Melee . | . . . . Ram 13 | . . . 13 Kick 4 | . . . 4 Crush . | . . . . Escape Stasis . | . . . . Rewire . | . . . . Trap . | . . . . Miscellaneous . | . . . . Route ------- -11/Scrapyard -10/Materials (discovered 2 exits: [Mat] / *Sub) -10/Subcaves (discovered 2 exits: *Mat x2) -8/Materials History --------- Turn | Location | Event 2 | -11/Scrapyard | Met Revision 17 18 | -11/Scrapyard | Discovered new exit (range 15) 193 | -11/Scrapyard | Entered Materials 313 | -10/Materials | Build established: Mutant 578 | -10/Materials | Discovered new exit (range 7) 631 | -10/Materials | Discovered new exit (range 10) 738 | -10/Materials | Entered Subcaves 738 | -10/Subcaves | Discovered new exit (range 8) 742 | -10/Subcaves | Identified exit to Materials 900 | -10/Subcaves | Ambushed by swarm of Subdwellers 900 | -10/Subcaves | Ambushed by Subdwellers from Twisted Machinery 903 | -10/Subcaves | Ambushed by Subdwellers from Twisted Machinery 903 | -10/Subcaves | Ambushed by Subdwellers from Twisted Machinery 903 | -10/Subcaves | Ambushed by Subdwellers from Twisted Machinery 903 | -10/Subcaves | Ambushed by Subdwellers from Twisted Machinery 930 | -10/Subcaves | Destroyed 11 combat bots 1185 | -10/Subcaves | Visited 4L-MR0's lab 1219 | -10/Subcaves | Found Arachnoskeleton 1944 | -10/Subcaves | Entered Materials 1944 | -8/Materials | Evolved 4 slots: Propulsion x1, Utility x2, Weapon x1 1946 | -8/Materials | Attached Arachnoskeleton, gained temporary slots: Propulsion x3 2086 | -8/Materials | Garrison activated, responded to threat 2147 | -8/Materials | Core integrity fell below 50% 2178 | -8/Materials | Lost 9 parts (2p2n1u4w) 2191 | -8/Materials | Core integrity fell below 20% 2199 | -8/Materials | Destroyed by Y-45 Defender with Heavy Assault Rifle Last Messages --------------- U-05 Engineer lays Concrete. Slug penetrates Wall. K-01 Serf collects debris. Acquired Field Recycling Unit. Connecting with Recycling Unit... Slammed into G-47 Trooper. Destabilizing: System corrupted (+1). Critical hit (Burn: +37). Slammed into G-47 Trooper. Destabilizing: System corrupted (+2). Slammed into G-47 Trooper. Slug penetrates Wall. Slammed into G-47 Trooper. Critical hit (Burn: +37). Slammed into G-47 Trooper. Slug penetrates Wall. Slammed into G-47 Trooper. Critical hit (Burn: +37). Field Recycling Unit destroyed. Slammed into G-47 Trooper. Map ----- +----------------------------------------------------+ | ??????????????????????????????? | | ??????????????????????????????? | | ??????????????????????????????? | | ??????????????????????????????? | | ??????????????????????????????? | | ??????????????????????????????? | | ??????????????????????????????? | | ??????????????????????????????? | | ??????????????????????????????? | | ??????????????????????????????? | | ????########??????????????????? | | ????# #??????????????????? | | ????# #??????????????????? | | ????#""" #??????????????????? | | ????#"Y #??????????????????? | | ????#""" #????????????? #???? | | ????# #????+######?? #???? | | ????####+####### """ #?? #???? | | ###### # + """ #?? #???? | | # !# ####### """ #?? #???? | | # # #???????? +?? #???? | | # # #????????? #?? #???? | | # !!! # #????????? ### ###?? | | #% !!! # ###########+## #?? | | # !! #hY ### | | # @/ k w | | #/ #g ### | | # ###+############ #?? | | # """ #??????????????## ##?? | | # """ #??????########## #??? | | # """ #??????# ! # #??? | | #= #??????#""" # ##?? | | ########??????#"" # #?? | | ??????????????#"" ### | | ??????????????# | | ??????????????# ! | | ??????????????#= !* % T | | ??????????????######### %! | | ?????????????????????# | | ?????????????????????## | | ??????????????????????# " | | ??????????????????????# | | ??????????????????????# ! | | ??########????????????# | | ??# #????????????# | | ??# !!! #????????????# | | ??# !! #????????????# | | ??# ! #????????????# // | | ??# #????????#+### // | | ??# #????????# / | +----------------------------------------------------+ Best States ------------- Heat Dissipation 31 Energy Generation 10 Energy Capacity 125 Matter Stores 300 Matter Capacity 300 Sight Range 16 Terrain Scan Range 16 Terrain Scan Density 85 Armor Coverage 800 Evasion (%) 57 Item Schematics ----------------- None Robot Schematics ------------------ None Fabricated ------------ Nothing Alien Tech Used ----------------- None Achievements -------------- Let's See Who's Tougher Quick And Dirty Challenges ------------ None Game ------ Seed ArmorTrapRefractor Manual? 0 Play Time 00:33:17 Cumulative 5.6 hours Start 2024.05.21 @ 07:55:11 End 2024.05.21 @ 10:45:10 Sessions 5 Manual Loads 0 Difficulty Rogue Special Mode None Game No. 7 Rogue 7 Adventurer 0 Explorer 0 Win Type - Total 0 Types 0/0/0/0/0/0/0/0/0 Lore% 6 Gallery% 10 Achievement% 11 Wizard Run 0 Options --------- Layout 2 ASCII 0 Keyboard 0 Movement Arrows Keybinds 0 Fullscreen 0 Font 28/Proggy Map View 65x48 Zoom Use 0% Tactical HUD 0 Map Filters NONE Filters NONE Steam 1 RUN: a1887bb7-ba41-4a08-9e95-47813328adc6